Cogmind - Beta 11.1 @@@ ROGUE MODE // 2022.05.19 @ 16:11:07 Player: the cat Result: Destroyed by as-34085 with Assembled F-torch Performance ------------- Evolutions (0) 0 Regions Visited (4) 800 Robots Destroyed (20) 100 Value Destroyed (508) 508 Prototype IDs (25) 500 Alien Tech Used (0) 0 Bonus (258) 258 TOTAL SCORE: 2166 Bonus ------- Follower Combat Kills 60 Aligned with FarCom 300 Friendly Fire -102 Cogmind --------- Core Integrity 0/250 Matter 190/300 Energy 154/250 System Corruption 5% Temperature Cool (20) Movement Rolling (145) Ox3 Location -9/Mines Parts ------- > --- POWER (1) -------- Ion Engine > --- PROPULSION (2) --- Light Treads Compact Wheel > --- UTILITY (2) ------ High-capacity Storage Unit > --- WEAPON (2) ------- Shotgun Shotgun > --- INVENTORY (20) --- Light Nuclear Core Carbon-fiber Leg Carbon-fiber Leg VSS Leg Compact Wheel Flying Fortress v7 Small Storage Unit Large Storage Unit Compact Matter Pod (150) Trap Reconfigurator EM Pulse Gun Medium Laser Beam Cannon Mining Laser Peak State ------------ > --- POWER ------------ Ion Engine > --- PROPULSION ------- Light Treads Compact Wheel > --- UTILITY ---------- High-capacity Storage Unit Hardlight Generator > --- WEAPON ----------- Shotgun Shotgun > --- INVENTORY -------- Ion Engine Light Nuclear Core Light Treads Carbon-fiber Leg Carbon-fiber Leg VSS Leg Compact Wheel Flying Fortress v7 Small Storage Unit Large Storage Unit Compact Matter Pod Trap Reconfigurator EM Pulse Gun Medium Laser Beam Cannon Grenade Launcher Mining Laser [Rating: 17] Favorites ----------- Power Ion Engine Engine Ion Engine Propulsion Light Treads Treads Light Treads Leg Improved Aluminum Leg Wheel Compact Wheel Utility Large Storage Unit Device Hardlight Generator Storage Large Storage Unit Processor Targeting Computer Protection Light Armor Plating Weapon Shotgun Energy Gun EM Pulse Gun Ballistic Gun Shotgun Launcher Grenade Launcher Build | -11 -10 -10 -10 -9 ------- Run | Scr Mat Min Exi Min Slots Evolved . | . . . . . Power . | . . . . . Propulsion . | . . . . . Utility . | . . . . . Weapon . | . . . . . Parts Attached 25 | . 17 2 1 5 Power 3 | . 1 1 . 1 Engine 3 | . 1 1 . 1 Core . | . . . . . Reactor . | . . . . . Propulsion 6 | . 4 . . 2 Treads 2 | . 1 . . 1 Leg 2 | . 2 . . . Wheel 2 | . 1 . . 1 Hover . | . . . . . Flight . | . . . . . Utility 6 | . 4 1 1 . Device 1 | . . 1 . . Storage 3 | . 2 . 1 . Processor 1 | . 1 . . . Hackware . | . . . . . Protection 1 | . 1 . . . Artifact . | . . . . . Weapon 10 | . 8 . . 2 Energy Gun . | . . . . . Energy Cannon . | . . . . . Ballistic Gun 6 | . 5 . . 1 Ballistic Cannon . | . . . . . Launcher 4 | . 3 . . 1 Special Weapon . | . . . . . Impact Weapon . | . . . . . Slashing Weapon . | . . . . . Piercing Weapon . | . . . . . Special Melee Weapon . | . . . . . Unidentified Prototypes . | . . . . . Parts Lost 5 | . . 1 . 4 Power 1 | . . . . 1 Propulsion 1 | . . . . 1 Utility 2 | . . 1 . 1 Weapon 1 | . . . . 1 Highest Loss Streak 4 | . . 1 . 4 To Critical Strikes . | . . . . . Average Slot Usage (%) 99 | . 99 100 100 85 Engine 13 | . 14 14 14 9 Treads 10 | . . 14 14 14 Leg 6 | . 28 . . . Wheel 10 | . . 14 14 14 Device 7 | . . 3 14 4 Storage 14 | . 14 14 14 14 Processor 1 | . 4 . . . Protection 5 | . 9 10 . . Energy Gun 1 | . 6 . . . Ballistic Gun 26 | . 20 28 28 23 Naked Turns . | . . . . . Heaviest Build 56 | 11 32 36 56 56 Greatest Support 26 | 20 26 20 20 16 Greatest Overweight (x) 3 | . 1 2 3 3 Average Overweight (x) 1 | . . 1 2 2 Largest Inventory Capacity 20 | . 15 15 20 20 Average Capacity 15 | . 10 15 17 20 Most Carried 20 | . 13 15 20 20 Average Carried 14 | . 8 14 16 18 Final Capacity 20 | 8 15 15 20 20 Final Carried 20 | 6 12 14 20 17 Class Distribution -------------------- 100% | Mutant Dominant Class ---------------- Mutant | -10/Materials Mutant | -10/Mines Mutant | -10/Exiles Mutant | -9/Mines Resources | -11 -10 -10 -10 -9 ----------- Run | Scr Mat Min Exi Min Matter Collected 633 | 200 204 229 . . Remotely . | . . . . . Salvage Created 572 | . 437 94 . 41 Parts 35 | . 35 . . . Haulers Intercepted 1 | . 1 . . . Recyclers Shooed 2 | . 1 1 . . Parts Field Recycled . | . . . . . Retrieved Matter . | . . . . . Parts Self-Destructed . | . . . . . Prevented . | . . . . . Kills | -11 -10 -10 -10 -9 ------- Run | Scr Mat Min Exi Min Combat Hostiles Destroyed 27 | . 15 . . 12 Guns 11 | . 7 . . 4 AOE 16 | . 8 . . 8 Classes Destroyed 7 | . 5 1 . 1 Builder 2 | . 2 . . . Hauler 1 | . 1 . . . Recycler 1 | . . 1 . . Operator 1 | . 1 . . . Swarmer 3 | . 3 . . . Grunt 12 | . 12 . . . Assembled 12 | . . . . 12 Best Kill Streak 12 | . 9 1 . 12 Combat Bots Only 12 | . 7 . . 12 Max Kills in Single Turn 5 | . 4 1 . 5 Gunslinging . | . . . . . Exploded 5 | . 3 . . 5 Melee . | . . . . . Uniques/NPCs Destroyed . | . . . . . Combat | -11 -10 -10 -10 -9 -------- Run | Scr Mat Min Exi Min Damage Taken 1045 | . 395 61 . 589 Core 251 | . 75 . . 176 Absorbed by Shields 28 | . . . . 28 Core Remaining (%) 100 | 100 . . . . Volleys Fired 42 | . 32 3 . 7 Largest 2 | . 2 2 . 2 Hottest 60 | . 60 46 . 46 Shots Fired 69 | . 52 6 . 11 Gun 54 | . 40 6 . 8 Cannon . | . . . . . Launcher 15 | . 12 . . 3 Special . | . . . . . Kinetic 46 | . 32 6 . 8 Thermal . | . . . . . Explosive 15 | . 12 . . 3 Electromagnetic 8 | . 8 . . . Robot Hit Streak 10 | . 10 6 . 4 Robot Miss Streak 3 | . 3 2 . 3 Penetration Max . | . . . . . Secondary Targets 1 | . . . . 1 Max Gunslinging Chain 1 | . . . . 1 Shots Hit Robots 50 | . 36 6 . 8 Core Hits 68 | . 34 4 . 30 Critical Kills 1 | . 1 . . . Critical Parts Destroyed . | . . . . . Critical Strikes 1 | . 1 . . . Destroy 1 | . 1 . . . Melee Attacks . | . . . . . Impact . | . . . . . Slashing . | . . . . . Piercing . | . . . . . Sneak Attacks . | . . . . . Combat Hostiles . | . . . . . Follow-up Attacks . | . . . . . Damage Inflicted 2184 | . 1176 125 . 883 Guns 616 | . 404 115 . 97 Cannons . | . . . . . Explosions 1558 | . 772 . . 786 Melee . | . . . . . Ramming 10 | . . 10 . . Kinetic 535 | . 323 115 . 97 Thermal . | . . . . . Explosive 1558 | . 772 . . 786 Electromagnetic 81 | . 81 . . . Impact . | . . . . . Slashing . | . . . . . Piercing . | . . . . . Highest Corruption 5 | . . . . 5 Average Corruption 5 | . . . . 5 Corruption Purged . | . . . . . Corruption Blocked . | . . . . . Effects 1 | . . . . 1 Matter Fused 1 | . . . . 1 Overload Shots . | . . . . . Overflow Damage 46 | . 25 . . 21 Projectiles . | . . . . . Explosions 46 | . 25 . . 21 Melee . | . . . . . Knockbacks . | . . . . . Impact . | . . . . . Kinetic . | . . . . . Secondary . | . . . . . Self-Inflicted Damage 44 | . . . . 44 Shots 2 | . . . . 2 Rammed 2 | . . 2 . . Targets Rammed 2 | . . 2 . . Kicked . | . . . . . Crushed . | . . . . . Highest Temperature 61 | . 61 4 . 15 Average Temperature 19 | . 20 4 . 9 Received Heat Transfer 322 | . 225 33 . 64 Siege Activations . | . . . . . Robots Corrupted . | . . . . . Combat Hostiles . | . . . . . Parts Fried . | . . . . . Impact Corruptions . | . . . . . Robots Melted . | . . . . . Combat Hostiles . | . . . . . Parts Melted . | . . . . . Heat Transferred . | . . . . . Parts Sabotaged . | . . . . . Parts Stolen . | . . . . . Parts Stripped . | . . . . . Power Chain Reactions . | . . . . . Missiles Intercepted . | . . . . . Alert | -11 -10 -10 -10 -9 ------- Run | Scr Mat Min Exi Min Peak Influence 370 | . 370 82 . 36 Initial 82 | . . 82 . . Average 118 | . 193 56 . 3 Maximum Alert Level 1 | . 1 . . . Low Security (%) 73 | . 43 100 . 100 Level 1 26 | . 56 . . . Level 2 . | . . . . . Level 3 . | . . . . . Level 4 . | . . . . . Level 5 . | . . . . . High Security . | . . . . . Max Security . | . . . . . Squads Dispatched 3 | . 2 1 . . Investigation 3 | . 2 1 . . Extermination . | . . . . . Reinforcement . | . . . . . Assault . | . . . . . Garrison . | . . . . . Intercept . | . . . . . Searches Triggered . | . . . . . Construction Impeded . | . . . . . Haulers Reinforced . | . . . . . Active Scanning Responses . | . . . . . Cargo Convoy Interrupts . | . . . . . Stealth | -11 -10 -10 -10 -9 --------- Run | Scr Mat Min Exi Min Distress Signals . | . . . . . Communications Jammed . | . . . . . Distress Signals . | . . . . . Times Spotted 41 | . 18 2 . 21 Peak Tracking Total 20 | . 5 2 . 20 Tactical Retreats 1 | . . . . 1 Traps | -11 -10 -10 -10 -9 ------- Run | Scr Mat Min Exi Min Traps Triggered 1 | . 1 . . . Indirectly . | . . . . . Trap Hack Attempts . | . . . . . Triggered . | . . . . . Disarmed . | . . . . . Reprogrammed . | . . . . . Reused . | . . . . . Traps Extracted . | . . . . . Installed . | . . . . . Triggered . | . . . . . Machines | -11 -10 -10 -10 -9 ---------- Run | Scr Mat Min Exi Min Machines Disabled 1 | . 1 . . . Max in Single Turn 1 | . 1 . . . Machines Sabotaged . | . . . . . Garrisons Compromised . | . . . . . Overloaded Fab Kills . | . . . . . Hacking | -11 -10 -10 -10 -9 --------- Run | Scr Mat Min Exi Min Machines Accessed 9 | . 6 1 2 . Terminals 4 | . 4 . . . Fabricators . | . . . . . Repair Stations . | . . . . . Recycling Units 2 | . 2 . . . Scanalyzers . | . . . . . Garrison Access . | . . . . . Total Hacks 22 | . 16 1 5 . Successful 15 | . 9 1 5 . Failed 7 | . 7 . . . Catastrophic 1 | . 1 . . . Database Lockouts . | . . . . . Manual 14 | . 13 . 1 . Terminals 14 | . 14 . . . Fabricators . | . . . . . Repair Stations . | . . . . . Recycling Units 2 | . 2 . . . Scanalyzers . | . . . . . Garrison Access . | . . . . . Terminal Hacks 13 | . 7 1 5 . Record 4 | . . . 4 . Robot Analysis 1 | . 1 . . . Prototype ID Bank 1 | . 1 . . . Open Door 1 | . . 1 . . Branch Access Points 1 | . 1 . . . Alert Level 1 | . 1 . . . Unreport Threat 1 | . 1 . . . Locate Traps 1 | . 1 . . . Hauler Manifests 1 | . 1 . . . EX-Prototype ID Bank 1 | . . . 1 . Fabricator Hacks . | . . . . . Repair Station Hacks . | . . . . . Recycling Unit Hacks . | . . . . . Scanalyzer . | . . . . . Garrison Access Hacks . | . . . . . Unauthorized Hacks 2 | . 2 . . . Terminals . | . . . . . Fabricators . | . . . . . Repair Stations . | . . . . . Recycling Units 2 | . 2 . . . Tunnel 2 | . 2 . . . Scanalyzers . | . . . . . Garrison Access . | . . . . . Data Cores Recovered 1 | . 1 . . . Used . | . . . . . Hacking Detections 3 | . 3 . . . Full Trace Events . | . . . . . Feedback Events . | . . . . . Feedback Blocked . | . . . . . Robot Schematics Acquired . | . . . . . Robots Built . | . . . . . Authchips . | . . . . . Time . | . . . . . Total Robot Build Rating . | . . . . . Part Schematics Acquired . | . . . . . Parts Built . | . . . . . Authchips . | . . . . . Time . | . . . . . Total Part Build Rating . | . . . . . Parts Repaired . | . . . . . Time . | . . . . . Parts Recycled . | . . . . . Recycled Matter . | . . . . . Retrieved Matter . | . . . . . Retrieved Components . | . . . . . Parts Scanalyzed . | . . . . . Part Schematics Acquired . | . . . . . Parts Damaged . | . . . . . Bothacking | -11 -10 -10 -10 -9 ------------ Run | Scr Mat Min Exi Min Used RIF Installer . | . . . . . Robots Hacked . | . . . . . Non-combat . | . . . . . Combat . | . . . . . Robot Hacks Applied . | . . . . . Relay Couplers Released . | . . . . . Fabnet Peak Effective % . | . . . . . Robots Rewired . | . . . . . Allies Hacked . | . . . . . Hacks Repelled . | . . . . . Allies | -11 -10 -10 -10 -9 -------- Run | Scr Mat Min Exi Min Total Allies 3 | . . 3 . . Largest Group 3 | . . 3 3 2 Highest-Rated Group 40 | . . 40 40 32 Highest-Rated Ally 16 | . . 16 16 16 Total Orders . | . . . . . Ally Attacks 19 | . . 11 . 8 Total Damage 178 | . . 141 . 37 Kills 2 | . . 2 . . Allies Corrupted . | . . . . . Allies Melted . | . . . . . Intel | -11 -10 -10 -10 -9 ------- Run | Scr Mat Min Exi Min Robot Analysis Total 1 | . 1 . . . Derelict Logs Recovered 1 | . . 1 . . Drone Launches . | . . . . . Drone Recoveries . | . . . . . Exploration | -11 -10 -10 -10 -9 ------------- Run | Scr Mat Min Exi Min Turns Passed 2803 | . 673 759 1339 32 Spaces Moved 1805 | 1 424 554 821 5 Core . | . . . . . Treads 155 | . . 3 152 . Legs 424 | 1 423 . . . Wheels 1226 | . 1 551 669 5 Hover . | . . . . . Flight . | . . . . . Fastest Speed 115 | 120 115 115 130 130 Average Speed 142 | 120 128 129 159 142 Slowest Speed 240 | 120 190 240 240 145 Overloaded Moves . | . . . . . Propulsion Burnouts . | . . . . . Robots Hopped . | . . . . . Cave-ins Triggered . | . . . . . Exploration Rate (%) 46 | 2 69 87 71 4 Regions Visited 4 Branch Regions 3 Pre-discovered Areas 3 | . 2 . 1 . Known Exits Taken 1 | . 1 . . . Unknown Exits Taken 3 | 1 . 1 1 . Scrap Searched . | . . . . . Spaces Dug . | . . . . . Terrain Destroyed 39 | . 22 . . 17 Melee . | . . . . . Projectile . | . . . . . AOE 39 | . 22 . . 17 Terrain Rammed . | . . . . . Walls Destroyed . | . . . . . Machines Disabled . | . . . . . Actions | -11 -10 -10 -10 -9 --------- Run | Scr Mat Min Exi Min Total 1967 | . 505 592 853 17 Wait 58 | . 11 19 28 . Move 1801 | . 423 553 820 5 Hop . | . . . . . Pick Up 22 | . 11 8 3 . Fast Attach 2 | . 2 . . . Attach 7 | . 2 2 . 3 Detach . | . . . . . Swap 16 | . 13 . 1 2 Drop 17 | . 11 5 1 . Fire 42 | . 32 3 . 7 Melee . | . . . . . Ram . | . . . . . Kick . | . . . . . Crush 2 | . . 2 . . Escape Stasis . | . . . . . Rewire . | . . . . . Trap . | . . . . . Miscellaneous . | . . . . . Route ------- -11/Scrapyard -10/Materials (discovered 4 exits: [*Mat x3] / *Min) -10/Mines (discovered 3 exits: [*Mat x2] / *Exi) -10/Exiles -9/Mines History --------- Turn | Location | Event 1 | -11/Scrapyard | Discovered new exit (range 0) 1 | -11/Scrapyard | Entered Materials 7 | -10/Materials | Identified exit to Mines 95 | -10/Materials | Discovered new exit (range 7) 187 | -10/Materials | Destroyed 7 combat bots 306 | -10/Materials | Build established: Mutant 327 | -10/Materials | Discovered new exit (range 16) 523 | -10/Materials | Discovered new exit (range 14) 674 | -10/Materials | Entered Mines 685 | -10/Mines | Discovered new exit (range 5) 712 | -10/Mines | Met a Derelict shopkeep closing up shop 977 | -10/Mines | Discovered new exit (range 8) 992 | -10/Mines | Assisted by bots powering up and referring to "LRC-V3" 1095 | -10/Mines | Deemed a non-threat by the Exiles lab entrance 1095 | -10/Mines | Discovered new exit (range 5) 1310 | -10/Mines | Learned Materials terminal intel 1433 | -10/Mines | Entered Exiles 1433 | -10/Exiles | Accompanied by 3 allies 1466 | -10/Exiles | Met 8R-AWN 1487 | -10/Exiles | Met EX-HEX 1526 | -10/Exiles | Met EX-BIN 1544 | -10/Exiles | Aligned with FarCom system 1545 | -10/Exiles | Given EX-Vault access code 1587 | -10/Exiles | Opened EX-Vault 1628 | -10/Exiles | Warned to stay clear of 0b10 Research branches 1847 | -10/Exiles | Met EX-DEC 1862 | -10/Exiles | Learned location of Zion (-7) 2184 | -10/Exiles | Found Flying Fortress v7 2191 | -10/Exiles | Found Trap Reconfigurator 2754 | -10/Exiles | Discovered new exit (range 11) 2772 | -10/Exiles | Stole two prototypes: Flying Fortress v7, Trap Reconfigurator 2772 | -10/Exiles | Entered Mines 2772 | -9/Mines | Accompanied by 3 allies 2773 | -9/Mines | Assembled infested the area 2780 | -9/Mines | Core integrity fell below 50% 2795 | -9/Mines | Core integrity fell below 20% 2804 | -9/Mines | Destroyed by as-34085 with Assembled F-torch Last Messages --------------- 02779_ as-94997 destroyed. 02779_ Destroyed Asb. Hover Unit. 02779_ as-01114 destroyed. 02779_ as-21103 destroyed. 02780_ The unstable cave ceiling collapses. 02780_ Grenade Launcher destroyed. 02783_ Hardlight Generator destroyed. 02783_ System corrupted by crushing effect (+5). 02784_ Trooper 1a destroyed. 02784_ as-36420 destroyed. 02784_ Switching to secondary target: as-62550. 02786_ The unstable cave ceiling collapses. 02786_ as-62550 destroyed. 02787_ as-78108 destroyed. 02787_ Ion Engine destroyed. 02793_ Lgt. Treads destroyed. 02795_ as-06738 destroyed. 02798_ as-17059 destroyed. 02799_ as-88605 destroyed. 02802_ System corrupted: Matter fused (-8). Map ----- +----------------------------------------------------+ | ????????????????????????????????????????? | | ????????????????????????????????????????? | | ????????????????????????????????????????? | | ????????????????????????????????????????? | | ????????????????????????????????????????? | | ????????????????????????????????????????? | | ????????????????????????????????????????? | | ????????????????????????????????????????? | | ????????????????????????????????????????? | | ????????????????????????????????????????? | | ????????????????????????????????????????? | | ????????????????????????????????????????? | | ????????????????????????????????????????? | | ????????????????????????????????????????? | | ??????????????##????????????????????????? | | ???? ????###### ????????????????????????? | | ??? ???# # ##??????????????????????? | | ??# ?# ##???????d?????????????? | | ???# " # %% = #?????????????????????? | | ????# %% % #????????d????????????? | | ????# % ##????????????????????? | | ????????## *%#????????????????????? | | ????????#### # [#????????????????????? | | ?????????????###a ##????????????????????? | | ???????????????# ##?????????????????????? | | ???????????????#@#??????????????????????? | | ???????????????#%#??????????????????????? | | ??????????????? #??????????????????????? | | ???????????????###??????????????????????? | | ????????????????????????????????????????? | | ????????????????????????????????????????? | | ????????????????????????????????????????? | | ????????????????????????????????????????? | | ????????????????????????????????????????? | | ????????????????????????????????????????? | | ????????????????????????????????????????? | | ????????????????????????????????????????? | | ????????????????????????????????????????? | | ????????????????????????????????????????? | | ????????????????????????????????????????? | | ????????????????????????????????????????? | | ????????????????????????????????????????? | | ????????????????????????????????????????? | | ????????????????????????????????????????? | | ????????????????????????????????????????? | | ????????????????????????????????????????? | | ????????????????????????????????????????? | | ????????????????????????????????????????? | | ????????????????????????????????????????? | | ????????????????????????????????????????? | +----------------------------------------------------+ Best States ------------- Heat Dissipation 25 Energy Generation 10 Energy Capacity 250 Matter Stores 300 Matter Capacity 300 Sight Range 16 Terrain Scan Density 10 Armor Coverage 150 Evasion (%) 55 Targeting Accuracy 5 Recoil Reduction 1 Item Schematics ----------------- None Robot Schematics ------------------ None Fabricated ------------ Nothing Alien Tech Used ----------------- None Achievements -------------- None Challenges ------------ None Game ------ Seed BlastAnalysisComputer Manual? 0 Play Time 00:19:19 Cumulative 306.5 hours Start 2022.05.19 @ 15:47:16 End 2022.05.19 @ 16:11:07 Sessions 1 Manual Loads 0 Difficulty Rogue Special Mode None Game No. 89 Rogue 72 Adventurer 17 Explorer 0 Win Type - Total 18 Types 8/1/7/1/0/0/1/0/0 Lore% 80 Gallery% 84 Achievement% 73 Wizard Run 0 Options --------- ASCII 0 Keyboard 0 Movement Arrows Keybinds 0 Fullscreen 1 Font 28/Dina Map View 72x54 Tactical HUD 1 Map Filters NONE Filters NONE Steam 1 RUN: 3576057b-6644-4a0b-a8e2-5168b5e44152